[Event "Titled Tuesday Blitz February 14 Early 2023"]
[White "Khamdamova, Afruza"]
[Black "Klabis, Rokas"]
[WhiteFideId "14210444"]
[BlackFideId "12805246"]
[WhiteElo "2162"]
[BlackElo "2415"]
[Result "1-0"]
[Round "03"]
[TimeControl "180+2"]
[Date "2023.02.15"]
[WhiteClock "0:00:23"]
[BlackClock "0:01:05"]

1. e4 {[%clk 0:03:00]}  e5 {[%clk 0:02:54]} 2. Nf3 {[%clk 0:03:00]}  Nc6 {[%clk 0:02:54]} 3. Bb5 {[%clk 0:03:00]}  g6 {[%clk 0:02:54]} 4. c3 {[%clk 0:02:59]}  Bg7 {[%clk 0:02:52]} 5. O-O {[%clk 0:02:59]}  a6 {[%clk 0:02:51]} 6. Ba4 {[%clk 0:02:57]}  b5 {[%clk 0:02:52]} 7. Bc2 {[%clk 0:02:57]}  Nf6 {[%clk 0:02:51]} 8. d4 {[%clk 0:02:57]}  d6 {[%clk 0:02:52]} 9. Nbd2 {[%clk 0:02:55]}  exd4 {[%clk 0:02:51]} 10. cxd4 {[%clk 0:02:55]}  O-O {[%clk 0:02:51]} 11. Re1 {[%clk 0:02:55]}  Re8 {[%clk 0:02:51]} 12. h3 {[%clk 0:02:54]}  Nb4 {[%clk 0:02:48]} 13. Bb1 {[%clk 0:02:53]}  c5 {[%clk 0:02:48]} 14. Nf1 {[%clk 0:02:52]}  Nc6 {[%clk 0:02:41]} 15. d5 {[%clk 0:02:35]}  Na5 {[%clk 0:02:37]} 16. Ng3 {[%clk 0:02:32]}  Nc4 {[%clk 0:02:33]} 17. Bd3 {[%clk 0:02:21]}  Nb6 {[%clk 0:02:31]} 18. Bf4 {[%clk 0:02:17]}  Qe7 {[%clk 0:02:22]} 19. Rc1 {[%clk 0:02:06]}  Nfd7 {[%clk 0:02:22]} 20. b3 {[%clk 0:02:04]}  Ne5 {[%clk 0:02:19]} 21. Nxe5 {[%clk 0:02:02]}  Bxe5 {[%clk 0:02:20]} 22. Bxe5 {[%clk 0:01:59]}  Qxe5 {[%clk 0:02:21]} 23. Qd2 {[%clk 0:01:43]}  Bd7 {[%clk 0:02:20]} 24. Kh2 {[%clk 0:01:37]}  Qd4 {[%clk 0:02:16]} 25. Ne2 {[%clk 0:01:33]}  Qf6 {[%clk 0:02:12]} 26. f4 {[%clk 0:01:18]}  Rac8 {[%clk 0:02:11]} 27. Qa5 {[%clk 0:00:57]}  Qd8 {[%clk 0:02:03]} 28. Ng3 {[%clk 0:00:52]}  c4 {[%clk 0:01:59]} 29. bxc4 {[%clk 0:00:47]}  Nxc4 {[%clk 0:01:55]} 30. Qxd8 {[%clk 0:00:46]}  Rexd8 {[%clk 0:01:55]} 31. Bxc4 {[%clk 0:00:47]}  bxc4 {[%clk 0:01:53]} 32. Rc3 {[%clk 0:00:47]}  Re8 {[%clk 0:01:50]} 33. e5 {[%clk 0:00:44]}  Rc5 {[%clk 0:01:46]} 34. Ne4 {[%clk 0:00:43]}  Ra5 {[%clk 0:01:34]} 35. Nf6+ {[%clk 0:00:42]}  Kg7 {[%clk 0:01:32]} 36. Nxd7 {[%clk 0:00:41]}  dxe5 {[%clk 0:01:30]} 37. Rxe5 {[%clk 0:00:39]}  Rd8 {[%clk 0:01:27]} 38. Nb6 {[%clk 0:00:37]}  Rxa2 {[%clk 0:01:27]} 39. Rxc4 {[%clk 0:00:34]}  Rb8 {[%clk 0:01:26]} 40. Rc6 {[%clk 0:00:34]}  Rb2 {[%clk 0:01:23]} 41. Nd7 {[%clk 0:00:30]}  R8b7 {[%clk 0:01:24]} 42. Nf6 {[%clk 0:00:29]}  Rd2 {[%clk 0:01:19]} 43. Ne4 {[%clk 0:00:27]}  Re2 {[%clk 0:01:17]} 44. Nc5 {[%clk 0:00:24]}  Rbb2 {[%clk 0:01:13]} 45. Rxe2 {[%clk 0:00:25]}  Rxe2 {[%clk 0:01:14]} 46. Nxa6 {[%clk 0:00:24]}  Rd2 {[%clk 0:01:14]} 47. Nc7 {[%clk 0:00:24]}  h6 {[%clk 0:01:08]} 48. d6 {[%clk 0:00:24]}  g5 {[%clk 0:01:09]} 49. Nb5 {[%clk 0:00:23]}  gxf4 {[%clk 0:01:07]} 50. Kg1 {[%clk 0:00:21]}  Kf6 {[%clk 0:01:06]} 51. d7+ {[%clk 0:00:20]}  Ke7 {[%clk 0:01:07]} 52. Rd6 {[%clk 0:00:21]}  Rxd6 {[%clk 0:01:04]} 53. Nxd6 {[%clk 0:00:21]}  Kxd7 {[%clk 0:01:05]} 54. Nxf7 {[%clk 0:00:21]}  h5 {[%clk 0:01:04]} 55. Ne5+ {[%clk 0:00:22]}  Ke6 {[%clk 0:01:05]} 56. Nd3 {[%clk 0:00:22]}  Kf5 {[%clk 0:01:05]} 57. Kf2 {[%clk 0:00:22]}  Ke4 {[%clk 0:01:06]} 58. Ne1 {[%clk 0:00:22]}  Kf5 {[%clk 0:01:06]} 59. Nf3 {[%clk 0:00:22]}  Ke4 {[%clk 0:01:06]} 60. Nh4 {[%clk 0:00:23]}  Ke5 {[%clk 0:01:05]} 61. Kf3 {[%clk 0:00:23]} 1-0


[Site "https://www.chess.com"]

[Event "Titled Tuesday Blitz February 14 Early 2023"]
[White "Kochetov, Andrey"]
[Black "Belozerov, Andrei"]
[WhiteFideId "24130532"]
[BlackFideId "4120213"]
[WhiteElo "2165"]
[BlackElo "2461"]
[Result "1-0"]
[Round "03"]
[TimeControl "180+2"]
[Date "2023.02.15"]
[WhiteClock "0:00:17"]
[BlackClock "0:00:18"]

1. e4 {[%clk 0:03:00]}  c5 {[%clk 0:02:59]} 2. Nf3 {[%clk 0:03:00]}  Nc6 {[%clk 0:03:00]} 3. d4 {[%clk 0:03:01]}  cxd4 {[%clk 0:03:00]} 4. Nxd4 {[%clk 0:03:02]}  Nf6 {[%clk 0:03:00]} 5. f3 {[%clk 0:02:59]}  e5 {[%clk 0:02:56]} 6. Nb5 {[%clk 0:02:56]}  Bc5 {[%clk 0:02:36]} 7. c4 {[%clk 0:02:36]}  O-O {[%clk 0:02:27]} 8. N1c3 {[%clk 0:02:35]}  d6 {[%clk 0:02:27]} 9. Nd5 {[%clk 0:02:14]}  Nxd5 {[%clk 0:02:24]} 10. cxd5 {[%clk 0:02:14]}  Nd4 {[%clk 0:02:24]} 11. Nxd4 {[%clk 0:01:52]}  Bxd4 {[%clk 0:02:23]} 12. Qb3 {[%clk 0:01:51]}  f5 {[%clk 0:02:18]} 13. Bd3 {[%clk 0:01:46]}  Qh4+ {[%clk 0:02:13]} 14. g3 {[%clk 0:01:38]}  Qh5 {[%clk 0:02:12]} 15. Ke2 {[%clk 0:01:27]}  fxe4 {[%clk 0:01:43]} 16. Bxe4 {[%clk 0:01:25]}  Bf5 {[%clk 0:01:44]} 17. g4 {[%clk 0:00:58]}  Bxg4 {[%clk 0:01:27]} 18. fxg4 {[%clk 0:00:59]}  Qxg4+ {[%clk 0:01:25]} 19. Bf3 {[%clk 0:00:54]}  Qg6 {[%clk 0:01:14]} 20. Be3 {[%clk 0:00:22]}  Bxe3 {[%clk 0:01:13]} 21. Qxe3 {[%clk 0:00:14]}  Qc2+ {[%clk 0:01:12]} 22. Ke1 {[%clk 0:00:13]}  Rf4 {[%clk 0:00:54]} 23. Rf1 {[%clk 0:00:04]}  Raf8 {[%clk 0:00:52]} 24. Be2 {[%clk 0:00:03]}  Qxb2 {[%clk 0:00:34]} 25. Rc1 {[%clk 0:00:03]}  Rf2 {[%clk 0:00:31]} 26. Rxf2 {[%clk 0:00:03]}  Rf4 {[%clk 0:00:20]} 27. Rxf4 {[%clk 0:00:03]}  exf4 {[%clk 0:00:20]} 28. Qxf4 {[%clk 0:00:04]}  Qb4+ {[%clk 0:00:19]} 29. Qd2 {[%clk 0:00:05]}  Qh4+ {[%clk 0:00:18]} 30. Kd1 {[%clk 0:00:05]}  h5 {[%clk 0:00:17]} 31. Rc8+ {[%clk 0:00:05]}  Kf7 {[%clk 0:00:17]} 32. Qd3 {[%clk 0:00:04]}  Qf4 {[%clk 0:00:14]} 33. Qf3 {[%clk 0:00:04]}  Qxf3 {[%clk 0:00:13]} 34. Bxf3 {[%clk 0:00:05]}  g5 {[%clk 0:00:14]} 35. Bxh5+ {[%clk 0:00:05]}  Kf6 {[%clk 0:00:14]} 36. Bg4 {[%clk 0:00:05]}  Ke5 {[%clk 0:00:14]} 37. Rf8 {[%clk 0:00:06]}  Kxd5 {[%clk 0:00:14]} 38. Rf5+ {[%clk 0:00:07]}  Kd4 {[%clk 0:00:14]} 39. Rxg5 {[%clk 0:00:07]}  Ke3 {[%clk 0:00:14]} 40. Rd5 {[%clk 0:00:07]}  Kf4 {[%clk 0:00:14]} 41. Rxd6 {[%clk 0:00:08]}  Kxg4 {[%clk 0:00:14]} 42. Rd7 {[%clk 0:00:09]}  Kh3 {[%clk 0:00:14]} 43. Rxb7 {[%clk 0:00:09]}  Kxh2 {[%clk 0:00:15]} 44. Rxa7 {[%clk 0:00:10]}  Kg3 {[%clk 0:00:15]} 45. Rb7 {[%clk 0:00:11]}  Kf4 {[%clk 0:00:15]} 46. a4 {[%clk 0:00:12]}  Ke5 {[%clk 0:00:16]} 47. a5 {[%clk 0:00:13]}  Kd6 {[%clk 0:00:17]} 48. a6 {[%clk 0:00:14]}  Kc6 {[%clk 0:00:17]} 49. Rb1 {[%clk 0:00:14]}  Kc7 {[%clk 0:00:17]} 50. a7 {[%clk 0:00:14]}  Kc6 {[%clk 0:00:18]} 51. a8=Q+ {[%clk 0:00:15]}  Kc7 {[%clk 0:00:18]} 52. Qa6 {[%clk 0:00:15]}  Kd8 {[%clk 0:00:18]} 53. Rb7 {[%clk 0:00:16]}  Kc8 {[%clk 0:00:18]} 54. Qa8# {[%clk 0:00:17]} 1-0


[Site "https://www.chess.com"]

[Event "Titled Tuesday Blitz February 14 Early 2023"]
[White "Kanyamarala, Tarun"]
[Black "Papasimakopoulos, Alexandros"]
[WhiteFideId "45004714"]
[BlackFideId "4244125"]
[WhiteElo "2342"]
[BlackElo "2401"]
[Result "0-1"]
[Round "03"]
[TimeControl "180+2"]
[Date "2023.02.15"]
[WhiteClock "0:00:52"]
[BlackClock "0:01:00"]

1. d4 {[%clk 0:02:57]}  e6 {[%clk 0:02:42]} 2. c4 {[%clk 0:02:54]}  Nf6 {[%clk 0:02:42]} 3. Nc3 {[%clk 0:02:52]}  Bb4 {[%clk 0:02:42]} 4. e3 {[%clk 0:02:52]}  O-O {[%clk 0:02:39]} 5. Bd3 {[%clk 0:02:45]}  c5 {[%clk 0:02:38]} 6. Ne2 {[%clk 0:02:45]}  cxd4 {[%clk 0:02:38]} 7. exd4 {[%clk 0:02:45]}  d5 {[%clk 0:02:38]} 8. cxd5 {[%clk 0:02:45]}  Nxd5 {[%clk 0:02:38]} 9. O-O {[%clk 0:02:46]}  Nc6 {[%clk 0:02:38]} 10. Re1 {[%clk 0:02:44]}  b6 {[%clk 0:02:33]} 11. a3 {[%clk 0:02:42]}  Nxc3 {[%clk 0:02:28]} 12. bxc3 {[%clk 0:02:36]}  Be7 {[%clk 0:02:28]} 13. Be4 {[%clk 0:02:32]}  Bb7 {[%clk 0:02:28]} 14. Qc2 {[%clk 0:02:32]}  h6 {[%clk 0:02:23]} 15. Ng3 {[%clk 0:02:27]}  Rc8 {[%clk 0:02:20]} 16. Qe2 {[%clk 0:02:26]}  Na5 {[%clk 0:02:17]} 17. Qf3 {[%clk 0:02:26]}  Bxe4 {[%clk 0:02:12]} 18. Nxe4 {[%clk 0:02:25]}  Nb3 {[%clk 0:02:12]} 19. Rb1 {[%clk 0:02:25]}  Nxc1 {[%clk 0:02:12]} 20. Rbxc1 {[%clk 0:02:25]}  Qd5 {[%clk 0:02:05]} 21. a4 {[%clk 0:01:59]}  Qa5 {[%clk 0:02:03]} 22. Qd1 {[%clk 0:01:56]}  Rc7 {[%clk 0:01:55]} 23. Qb3 {[%clk 0:01:54]}  Rfc8 {[%clk 0:01:51]} 24. Rcd1 {[%clk 0:01:46]}  Qd5 {[%clk 0:01:46]} 25. Qb1 {[%clk 0:01:39]}  Rc4 {[%clk 0:01:41]} 26. Qc2 {[%clk 0:01:33]}  Rxd4 {[%clk 0:01:32]} 27. Rxd4 {[%clk 0:01:31]}  Qxd4 {[%clk 0:01:32]} 28. g3 {[%clk 0:01:22]}  Qc4 {[%clk 0:01:18]} 29. Rd1 {[%clk 0:01:09]}  Qc7 {[%clk 0:01:18]} 30. Qd3 {[%clk 0:01:02]}  Rd8 {[%clk 0:01:13]} 31. Qe2 {[%clk 0:01:01]}  Rxd1+ {[%clk 0:01:04]} 32. Qxd1 {[%clk 0:01:01]}  Qc4 {[%clk 0:01:02]} 33. Qc2 {[%clk 0:00:53]}  f5 {[%clk 0:01:00]} 34. Nd2 {[%clk 0:00:52]}  Qe2 {[%clk 0:01:00]} 0-1


[Site "https://www.chess.com"]

[Event "Titled Tuesday Blitz February 14 Early 2023"]
[White "Vagman, Roy"]
[Black "Stoleriu, George"]
[WhiteFideId "2828995"]
[BlackFideId "1227505"]
[WhiteElo "2273"]
[BlackElo "2390"]
[Result "0-1"]
[Round "03"]
[TimeControl "180+2"]
[Date "2023.02.15"]
[WhiteClock "0:00:01"]
[BlackClock "0:00:07"]

1. c4 {[%clk 0:03:00]}  e5 {[%clk 0:02:58]} 2. Nc3 {[%clk 0:03:00]}  Nc6 {[%clk 0:02:57]} 3. g3 {[%clk 0:02:59]}  g6 {[%clk 0:02:56]} 4. Bg2 {[%clk 0:03:00]}  Bg7 {[%clk 0:02:57]} 5. Nf3 {[%clk 0:02:59]}  d6 {[%clk 0:02:49]} 6. O-O {[%clk 0:02:55]}  f5 {[%clk 0:02:23]} 7. d3 {[%clk 0:02:49]}  Nf6 {[%clk 0:02:23]} 8. Rb1 {[%clk 0:02:43]}  a5 {[%clk 0:02:16]} 9. Bg5 {[%clk 0:02:36]}  h6 {[%clk 0:02:09]} 10. Bxf6 {[%clk 0:02:16]}  Bxf6 {[%clk 0:02:10]} 11. a3 {[%clk 0:02:14]}  O-O {[%clk 0:02:05]} 12. Nd2 {[%clk 0:02:14]}  Ne7 {[%clk 0:01:42]} 13. Qc2 {[%clk 0:01:57]}  c6 {[%clk 0:01:38]} 14. b4 {[%clk 0:01:48]}  axb4 {[%clk 0:01:36]} 15. axb4 {[%clk 0:01:49]}  d5 {[%clk 0:01:31]} 16. cxd5 {[%clk 0:01:36]}  cxd5 {[%clk 0:01:32]} 17. Nb5 {[%clk 0:01:34]}  Bd7 {[%clk 0:01:18]} 18. Nc3 {[%clk 0:01:09]}  Be6 {[%clk 0:01:12]} 19. Rfc1 {[%clk 0:01:01]}  Rc8 {[%clk 0:01:08]} 20. Qb2 {[%clk 0:00:59]}  e4 {[%clk 0:00:52]} 21. Qb3 {[%clk 0:00:46]}  Qd7 {[%clk 0:00:48]} 22. Na4 {[%clk 0:00:44]}  d4 {[%clk 0:00:40]} 23. Qa3 {[%clk 0:00:44]}  Ra8 {[%clk 0:00:37]} 24. b5 {[%clk 0:00:41]}  Nd5 {[%clk 0:00:21]} 25. Nc4 {[%clk 0:00:39]}  Be7 {[%clk 0:00:16]} 26. Qb3 {[%clk 0:00:37]}  Rfc8 {[%clk 0:00:14]} 27. dxe4 {[%clk 0:00:33]}  Nc3 {[%clk 0:00:10]} 28. Nab6 {[%clk 0:00:28]}  Bxc4 {[%clk 0:00:08]} 29. Nxc4 {[%clk 0:00:25]}  Qe6 {[%clk 0:00:08]} 30. exf5 {[%clk 0:00:20]}  Qxc4 {[%clk 0:00:07]} 31. Qxc4+ {[%clk 0:00:19]}  Rxc4 {[%clk 0:00:08]} 32. Bd5+ {[%clk 0:00:19]}  Nxd5 {[%clk 0:00:09]} 33. Rxc4 {[%clk 0:00:19]}  Nc3 {[%clk 0:00:09]} 34. Re1 {[%clk 0:00:17]}  gxf5 {[%clk 0:00:06]} 35. Rxd4 {[%clk 0:00:17]}  Bf6 {[%clk 0:00:06]} 36. Rd7 {[%clk 0:00:17]}  Rb8 {[%clk 0:00:05]} 37. Kf1 {[%clk 0:00:16]}  Nxb5 {[%clk 0:00:05]} 38. Red1 {[%clk 0:00:15]}  Nc3 {[%clk 0:00:03]} 39. R1d6 {[%clk 0:00:15]}  Ne4 {[%clk 0:00:04]} 40. Rd5 {[%clk 0:00:11]}  b5 {[%clk 0:00:04]} 41. Rxf5 {[%clk 0:00:11]}  b4 {[%clk 0:00:05]} 42. f3 {[%clk 0:00:09]}  b3 {[%clk 0:00:05]} 43. fxe4 {[%clk 0:00:04]}  b2 {[%clk 0:00:06]} 44. Rd1 {[%clk 0:00:04]}  b1=Q {[%clk 0:00:06]} 45. Rxb1 {[%clk 0:00:05]}  Rxb1+ {[%clk 0:00:07]} 46. Kg2 {[%clk 0:00:05]}  Kg7 {[%clk 0:00:08]} 47. h4 {[%clk 0:00:04]}  Rb4 {[%clk 0:00:07]} 48. Kf3 {[%clk 0:00:04]}  Rb3+ {[%clk 0:00:07]} 49. Kg2 {[%clk 0:00:04]}  Re3 {[%clk 0:00:07]} 50. Rf4 {[%clk 0:00:02]}  Rxe2+ {[%clk 0:00:07]} 51. Kf3 {[%clk 0:00:03]}  Re1 {[%clk 0:00:07]} 52. Kg4 {[%clk 0:00:03]}  Be5 {[%clk 0:00:07]} 53. Rf3 {[%clk 0:00:02]}  Rxe4+ {[%clk 0:00:07]} 54. Kf5 {[%clk 0:00:03]}  Re1 {[%clk 0:00:08]} 55. g4 {[%clk 0:00:03]}  Bc7 {[%clk 0:00:06]} 56. g5 {[%clk 0:00:03]}  h5 {[%clk 0:00:06]} 57. Re3 {[%clk 0:00:01]}  Rxe3 {[%clk 0:00:06]} 58. g6 {[%clk 0:00:01]}  Re5+ {[%clk 0:00:07]} 0-1


[Site "https://www.chess.com"]

[Event "Titled Tuesday Blitz February 14 Early 2023"]
[White "Skliarov, Viktor"]
[Black "Grycel, Kamil"]
[WhiteFideId "14106736"]
[BlackFideId "1115499"]
[WhiteElo "2383"]
[BlackElo "2315"]
[Result "1-0"]
[Round "03"]
[TimeControl "180+2"]
[Date "2023.02.15"]
[WhiteClock "0:00:07"]
[BlackClock "0:01:14"]

1. e4 {[%clk 0:03:00]}  b6 {[%clk 0:02:59]} 2. d4 {[%clk 0:03:01]}  Bb7 {[%clk 0:02:59]} 3. Bd3 {[%clk 0:03:01]}  Nf6 {[%clk 0:02:59]} 4. Qe2 {[%clk 0:03:01]}  Nc6 {[%clk 0:02:58]} 5. c3 {[%clk 0:03:00]}  e5 {[%clk 0:02:58]} 6. d5 {[%clk 0:02:52]}  Ne7 {[%clk 0:02:58]} 7. Nf3 {[%clk 0:02:52]}  Ng6 {[%clk 0:02:57]} 8. g3 {[%clk 0:02:52]}  c6 {[%clk 0:02:57]} 9. h4 {[%clk 0:02:37]}  h5 {[%clk 0:02:54]} 10. dxc6 {[%clk 0:02:14]}  Bxc6 {[%clk 0:02:53]} 11. Ng5 {[%clk 0:02:14]}  Be7 {[%clk 0:02:19]} 12. c4 {[%clk 0:01:55]}  Bb4+ {[%clk 0:02:04]} 13. Kf1 {[%clk 0:01:40]}  O-O {[%clk 0:02:00]} 14. a3 {[%clk 0:01:39]}  Bc5 {[%clk 0:01:59]} 15. Nc3 {[%clk 0:01:12]}  Ng4 {[%clk 0:01:50]} 16. f3 {[%clk 0:00:52]}  Nf2 {[%clk 0:01:44]} 17. Rh2 {[%clk 0:00:52]}  f6 {[%clk 0:01:41]} 18. Nh3 {[%clk 0:00:45]}  Nxd3 {[%clk 0:01:31]} 19. Qxd3 {[%clk 0:00:45]}  Qe7 {[%clk 0:01:23]} 20. b4 {[%clk 0:00:26]}  Bd4 {[%clk 0:01:23]} 21. Be3 {[%clk 0:00:27]}  f5 {[%clk 0:01:19]} 22. Bxd4 {[%clk 0:00:21]}  fxe4 {[%clk 0:01:17]} 23. Nxe4 {[%clk 0:00:21]}  exd4 {[%clk 0:01:16]} 24. Neg5 {[%clk 0:00:08]}  Ne5 {[%clk 0:01:14]} 25. Qh7# {[%clk 0:00:07]} 1-0


[Site "https://www.chess.com"]

[Event "Titled Tuesday Blitz February 14 Early 2023"]
[White "Taichman, Ori"]
[Black "Piesik, Piotr"]
[WhiteFideId "2804069"]
[BlackFideId "1136194"]
[WhiteElo "2299"]
[BlackElo "2426"]
[Result "0-1"]
[Round "03"]
[TimeControl "180+2"]
[Date "2023.02.15"]
[WhiteClock "0:00:07"]
[BlackClock "0:00:43"]

1. e4 {[%clk 0:03:00]}  g6 {[%clk 0:02:57]} 2. h4 {[%clk 0:02:58]}  h5 {[%clk 0:02:56]} 3. d4 {[%clk 0:02:58]}  c6 {[%clk 0:02:56]} 4. f3 {[%clk 0:02:40]}  d5 {[%clk 0:02:56]} 5. Be3 {[%clk 0:02:32]}  Nh6 {[%clk 0:02:53]} 6. Nd2 {[%clk 0:02:26]}  dxe4 {[%clk 0:02:51]} 7. Nxe4 {[%clk 0:02:25]}  Nf5 {[%clk 0:02:51]} 8. Bf2 {[%clk 0:02:25]}  Bg7 {[%clk 0:02:51]} 9. Ne2 {[%clk 0:02:16]}  Nd7 {[%clk 0:02:49]} 10. g4 {[%clk 0:02:10]}  hxg4 {[%clk 0:02:48]} 11. fxg4 {[%clk 0:02:09]}  Nd6 {[%clk 0:02:47]} 12. Nxd6+ {[%clk 0:02:05]}  exd6 {[%clk 0:02:48]} 13. Qd3 {[%clk 0:02:02]}  Nf6 {[%clk 0:02:47]} 14. g5 {[%clk 0:01:58]}  Ng4 {[%clk 0:02:41]} 15. Bg3 {[%clk 0:01:55]}  Bf5 {[%clk 0:02:41]} 16. Qa3 {[%clk 0:01:51]}  d5 {[%clk 0:02:24]} 17. O-O-O {[%clk 0:01:47]}  Bf8 {[%clk 0:02:23]} 18. Qb3 {[%clk 0:01:45]}  Qb6 {[%clk 0:02:22]} 19. Qf3 {[%clk 0:01:31]}  Qa5 {[%clk 0:02:09]} 20. a3 {[%clk 0:01:29]}  Qa4 {[%clk 0:02:03]} 21. Rd2 {[%clk 0:01:19]}  Be4 {[%clk 0:01:47]} 22. Qxg4 {[%clk 0:01:18]}  Bxh1 {[%clk 0:01:47]} 23. Bh3 {[%clk 0:01:13]}  Be7 {[%clk 0:01:33]} 24. Qd7+ {[%clk 0:01:11]}  Kf8 {[%clk 0:01:33]} 25. Qxb7 {[%clk 0:01:12]}  Rd8 {[%clk 0:01:23]} 26. Nc3 {[%clk 0:01:03]}  Qc4 {[%clk 0:01:18]} 27. Bc7 {[%clk 0:00:26]}  Rxh4 {[%clk 0:01:03]} 28. Bxd8 {[%clk 0:00:26]}  Bxd8 {[%clk 0:01:02]} 29. Be6 {[%clk 0:00:26]}  Qf1+ {[%clk 0:00:51]} 30. Nd1 {[%clk 0:00:20]}  Bxg5 {[%clk 0:00:49]} 31. Qb8+ {[%clk 0:00:15]}  Kg7 {[%clk 0:00:45]} 32. Qe5+ {[%clk 0:00:16]}  Qf6 {[%clk 0:00:44]} 33. Qxf6+ {[%clk 0:00:07]}  Kxf6 {[%clk 0:00:45]} 34. Bd7 {[%clk 0:00:07]}  Rh2 {[%clk 0:00:43]} 0-1


[Site "https://www.chess.com"]

[Event "Titled Tuesday Blitz February 14 Early 2023"]
[White "Sai Han Thiha"]
[Black "Katz, Alexander"]
[WhiteFideId "13012290"]
[BlackFideId "2039796"]
[WhiteElo "2070"]
[BlackElo "2470"]
[Result "1-0"]
[Round "03"]
[TimeControl "180+2"]
[Date "2023.02.15"]
[WhiteClock "0:00:07"]
[BlackClock "0:00:06"]

1. e4 {[%clk 0:03:00]}  c6 {[%clk 0:02:56]} 2. d4 {[%clk 0:03:00]}  d5 {[%clk 0:02:55]} 3. e5 {[%clk 0:03:01]}  Bf5 {[%clk 0:02:55]} 4. Nd2 {[%clk 0:03:01]}  e6 {[%clk 0:02:52]} 5. Nb3 {[%clk 0:03:01]}  Nd7 {[%clk 0:02:49]} 6. Nf3 {[%clk 0:03:01]}  Ne7 {[%clk 0:02:40]} 7. Be2 {[%clk 0:03:01]}  Nc8 {[%clk 0:02:37]} 8. a4 {[%clk 0:02:47]}  Be7 {[%clk 0:02:33]} 9. O-O {[%clk 0:02:42]}  O-O {[%clk 0:02:33]} 10. Be3 {[%clk 0:02:34]}  a5 {[%clk 0:02:20]} 11. Nc5 {[%clk 0:01:30]}  Qc7 {[%clk 0:02:01]} 12. c3 {[%clk 0:01:18]}  Bxc5 {[%clk 0:01:56]} 13. dxc5 {[%clk 0:01:19]}  Nxe5 {[%clk 0:01:53]} 14. Nd4 {[%clk 0:01:16]}  Bg6 {[%clk 0:01:41]} 15. f4 {[%clk 0:01:12]}  Nd7 {[%clk 0:01:38]} 16. b4 {[%clk 0:01:06]}  Ne7 {[%clk 0:01:28]} 17. g4 {[%clk 0:01:00]}  Be4 {[%clk 0:01:13]} 18. Bf3 {[%clk 0:00:57]}  e5 {[%clk 0:01:03]} 19. Bxe4 {[%clk 0:00:41]}  exd4 {[%clk 0:00:57]} 20. Bxh7+ {[%clk 0:00:32]}  Kxh7 {[%clk 0:00:56]} 21. Bxd4 {[%clk 0:00:32]}  Nf6 {[%clk 0:00:42]} 22. g5 {[%clk 0:00:30]}  Ne4 {[%clk 0:00:13]} 23. f5 {[%clk 0:00:24]}  Rh8 {[%clk 0:00:08]} 24. Qg4 {[%clk 0:00:18]}  Kg8 {[%clk 0:00:06]} 25. Rf4 {[%clk 0:00:11]}  Re8 {[%clk 0:00:04]} 26. h4 {[%clk 0:00:11]}  Nd2 {[%clk 0:00:04]} 27. h5 {[%clk 0:00:10]}  Ne4 {[%clk 0:00:04]} 28. f6 {[%clk 0:00:09]}  Ng6 {[%clk 0:00:04]} 29. hxg6 {[%clk 0:00:09]}  fxg6 {[%clk 0:00:02]} 30. fxg7 {[%clk 0:00:09]}  Rh7 {[%clk 0:00:02]} 31. Raf1 {[%clk 0:00:09]}  Rxg7 {[%clk 0:00:02]} 32. Bxg7 {[%clk 0:00:09]}  Qxg7 {[%clk 0:00:03]} 33. Qg2 {[%clk 0:00:07]}  Qxc3 {[%clk 0:00:04]} 34. Rf7 {[%clk 0:00:07]}  Qd4+ {[%clk 0:00:04]} 35. Kh1 {[%clk 0:00:07]}  Qe3 {[%clk 0:00:03]} 36. Qh2 {[%clk 0:00:06]}  Ng3+ {[%clk 0:00:04]} 37. Kg2 {[%clk 0:00:06]}  Qe2+ {[%clk 0:00:03]} 38. Kxg3 {[%clk 0:00:07]}  Re3+ {[%clk 0:00:03]} 39. R1f3 {[%clk 0:00:07]}  Qe1+ {[%clk 0:00:04]} 40. Kg4 {[%clk 0:00:07]}  Re4+ {[%clk 0:00:04]} 41. R7f4 {[%clk 0:00:06]}  Rxf4+ {[%clk 0:00:05]} 42. Qxf4 {[%clk 0:00:06]}  Qe6+ {[%clk 0:00:04]} 43. Kg3 {[%clk 0:00:06]}  Qe1+ {[%clk 0:00:05]} 44. Rf2 {[%clk 0:00:06]}  Qg1+ {[%clk 0:00:05]} 45. Kf3 {[%clk 0:00:06]}  Qh1+ {[%clk 0:00:05]} 46. Ke2 {[%clk 0:00:06]}  Qh5+ {[%clk 0:00:06]} 47. Qf3 {[%clk 0:00:05]}  Qxg5 {[%clk 0:00:04]} 48. Qf7+ {[%clk 0:00:05]}  Kh8 {[%clk 0:00:04]} 49. Rh2+ {[%clk 0:00:06]}  Qh5+ {[%clk 0:00:05]} 50. Rxh5+ {[%clk 0:00:06]}  gxh5 {[%clk 0:00:06]} 51. Qxh5+ {[%clk 0:00:07]} 1-0


[Site "https://www.chess.com"]

[Event "Titled Tuesday Blitz February 14 Early 2023"]
[White "Weetik, Vjacheslav"]
[Black "Balabayeva, Xeniya"]
[WhiteFideId "4153472"]
[BlackFideId "13719688"]
[WhiteElo "2423"]
[BlackElo "2191"]
[Result "1-0"]
[Round "03"]
[TimeControl "180+2"]
[Date "2023.02.15"]
[WhiteClock "0:00:03"]
[BlackClock "0:00:00"]

1. d4 {[%clk 0:02:59]}  d5 {[%clk 0:02:59]} 2. c4 {[%clk 0:02:59]}  e6 {[%clk 0:02:56]} 3. Nc3 {[%clk 0:02:58]}  Nf6 {[%clk 0:02:56]} 4. cxd5 {[%clk 0:02:58]}  exd5 {[%clk 0:02:55]} 5. Bg5 {[%clk 0:02:58]}  Be7 {[%clk 0:02:55]} 6. e3 {[%clk 0:02:58]}  c6 {[%clk 0:02:54]} 7. Bd3 {[%clk 0:02:59]}  Nbd7 {[%clk 0:02:51]} 8. Nge2 {[%clk 0:02:57]}  Nh5 {[%clk 0:02:48]} 9. Bxe7 {[%clk 0:02:43]}  Qxe7 {[%clk 0:02:48]} 10. Qd2 {[%clk 0:02:31]}  Nb6 {[%clk 0:02:34]} 11. O-O {[%clk 0:02:26]}  g6 {[%clk 0:02:26]} 12. f3 {[%clk 0:02:16]}  O-O {[%clk 0:02:19]} 13. e4 {[%clk 0:02:15]}  Ng7 {[%clk 0:02:14]} 14. Rae1 {[%clk 0:02:02]}  Be6 {[%clk 0:02:05]} 15. Qh6 {[%clk 0:01:57]}  f5 {[%clk 0:01:55]} 16. Nf4 {[%clk 0:00:46]}  Qf7 {[%clk 0:01:44]} 17. e5 {[%clk 0:00:37]}  Bd7 {[%clk 0:01:25]} 18. Nd1 {[%clk 0:00:31]}  Ne6 {[%clk 0:01:24]} 19. Nxe6 {[%clk 0:00:28]}  Bxe6 {[%clk 0:01:24]} 20. Nf2 {[%clk 0:00:29]}  Rac8 {[%clk 0:01:19]} 21. Nh3 {[%clk 0:00:27]}  Qg7 {[%clk 0:01:06]} 22. Qd2 {[%clk 0:00:27]}  c5 {[%clk 0:00:33]} 23. Nf4 {[%clk 0:00:12]}  Qe7 {[%clk 0:00:32]} 24. Qa5 {[%clk 0:00:06]}  c4 {[%clk 0:00:12]} 25. Bc2 {[%clk 0:00:06]}  Ra8 {[%clk 0:00:12]} 26. Qc5 {[%clk 0:00:05]}  Rfe8 {[%clk 0:00:11]} 27. b3 {[%clk 0:00:06]}  Rac8 {[%clk 0:00:09]} 28. Qa5 {[%clk 0:00:06]}  Ra8 {[%clk 0:00:06]} 29. Rc1 {[%clk 0:00:06]}  Rec8 {[%clk 0:00:04]} 30. Kh1 {[%clk 0:00:06]}  Qd7 {[%clk 0:00:03]} 31. h3 {[%clk 0:00:04]}  Rc6 {[%clk 0:00:02]} 32. b4 {[%clk 0:00:03]}  Rcc8 {[%clk 0:00:02]} 33. Qa3 {[%clk 0:00:03]}  Qe7 {[%clk 0:00:02]} 34. Qe3 {[%clk 0:00:02]}  Bf7 {[%clk 0:00:01]} 35. a3 {[%clk 0:00:03]}  Be6 {[%clk 0:00:01]} 36. Qf2 {[%clk 0:00:03]}  Kg7 {[%clk 0:00:00]} 37. Qg3 {[%clk 0:00:03]} 1-0


[Site "https://www.chess.com"]